bitfinex/quotes_ETHUSD_20230702
["timestamp","ask_amount","ask_price","bid_price","bid_amount"]
[1688279502055,5.6973,1916.7,1916.6,7.79717]
[1688279503136,0.48,1916.7,1916.6,7.79717]
[1688279503352,5.6973,1916.7,1916.6,7.79717]
[1688279505964,5.6973,1916.7,1916.6,5.21757]
[1688279512504,5.6973,1916.7,1916.5,13.53295647]
[1688279512660,0.48,1916.6,1916.5,13.53295647]
[1688279512864,0.48,1916.6,1916.5,14.43967543]
[1688279513982,0.48,1916.6,1916.5,9.22193543]
[1688279514460,5.69757,1916.6,1916.5,9.22193543]
[1688279514878,0.48,1916.6,1916.5,8.31521647]
[1688279515288,5.69757,1916.6,1916.5,8.31521647]
[1688279515584,5.69757,1916.6,1916.5,9.22194345]
[1688279515770,0.48,1916.6,1916.5,9.22194345]
[1688279516980,5.69757,1916.6,1916.5,3.09747647]
[1688279517184,0.48,1916.6,1916.5,8.31531647]
[1688279517502,0.48,1916.6,1916.5,14.43988634]
[1688279517682,0.48,1916.6,1916.5,9.22204634]
[1688279518264,5.69757,1916.6,1916.5,9.22204634]
[1688279518484,0.48,1916.6,1916.5,9.22204634]
[1688279519387,0.48,1916.6,1916.5,14.43988634]
[1688279519690,0.48,1916.6,1916.5,9.22204634]
[1688279520056,0.48,1916.6,1916.5,14.43988634]
[1688279522550,0.48,1916.7,1916.5,19.73233874]
[1688279522751,0.48,1916.7,1916.5,16.95607647]
[1688279523203,0.48,1916.8,1916.6,0.90670494]
[1688279523351,0.48,1916.8,1916.7,10.4346]
[1688279524916,0.48,1916.8,1916.7,5.2173]
[1688279528390,5.69702,1916.8,1916.7,5.2173]
[1688279529117,5.69702,1916.8,1916.7,5.71477647]
[1688279530293,0.48,1916.8,1916.7,5.71477647]
[1688279536341,0.0165546,1917.1,1916.7,2.04963612]
[1688279536551,35.59555,1917.4,1916.9,0.49747647]
[1688279536701,7.90325184,1917.3,1917.0,7.27568]
[1688279537604,13.11916184,1917.3,1917.0,7.27568]
[1688279537803,0.48,1917.2,1917.0,7.27568]
[1688279538006,5.69594,1917.2,1917.0,7.27568]
[1688279539546,10.91188,1917.2,1917.0,7.27568]
[1688279539737,12.53260618,1917.2,1916.9,10.93067647]
[1688279539938,2.68752184,1917.1,1916.9,0.49747647]
[1688279540145,10.91296,1917.0,1916.9,0.49747647]
[1688279540542,5.69648,1917.0,1916.9,0.49747647]
[1688279541123,5.69648,1917.0,1916.9,5.71422647]
[1688279541323,5.69648,1917.0,1916.9,5.71766059]
[1688279548660,5.69648,1917.0,1916.9,8.31766059]
[1688279550151,5.69648,1917.0,1916.9,3.10091059]
[1688279555609,5.69648,1917.0,1916.9,8.31766059]
[1688279556027,0.48,1917.0,1916.9,8.31766059]
[1688279557472,5.69648,1917.0,1916.9,8.31766059]
[1688279568639,0.48,1917.0,1916.9,8.31766059]
[1688279572694,5.69648,1917.0,1916.9,3.10091059]
[1688279574843,10.91296,1917.0,1916.9,3.10091059]
[1688279578238,0.48,1917.0,1916.9,3.10091059]
[1688279578441,5.69648,1917.0,1916.9,3.10091059]
[1688279582671,10.91296,1917.0,1916.9,3.10091059]
[1688279583253,17.82958102,1917.0,1916.9,3.10091059]
[1688279585937,17.82958102,1917.0,1916.9,2.60343412]
[1688279613341,16.20872184,1917.0,1916.9,2.60343412]
[1688279620399,13.60048184,1917.0,1916.9,2.60343412]
[1688279625636,16.20872184,1917.0,1916.9,2.60343412]
[1688279638880,8.38400184,1917.0,1916.9,2.60343412]
[1688279639879,13.60048184,1917.0,1916.9,2.60343412]
[1688279641008,13.60048184,1917.0,1916.9,0.00343412]
[1688279641303,13.60048184,1917.0,1916.8,4.8269]
[1688279642395,13.60048184,1917.0,1916.9,0.00329717]
[1688279643369,13.60048184,1917.0,1916.8,4.8269]
[1688279644318,13.60048184,1917.0,1916.9,0.00329717]
[1688279645316,13.60048184,1917.0,1916.8,4.8269]
[1688279646325,13.60048184,1917.0,1916.9,0.00329717]
[1688279647322,13.60048184,1917.0,1916.8,4.8269]
[1688279648327,13.60048184,1917.0,1916.9,0.00329717]
[1688279649323,13.60048184,1917.0,1916.8,4.8269]
[1688279650226,16.20872184,1917.0,1916.8,4.8269]
[1688279650516,16.20872184,1917.0,1916.9,0.00329717]
[1688279651023,17.82959402,1917.0,1916.9,0.00329717]
[1688279651426,17.82959402,1917.0,1916.8,4.8269]
[1688279651597,16.20872184,1917.0,1916.8,4.8269]
[1688279652329,16.20872184,1917.0,1916.9,0.00329717]
[1688279653414,16.20872184,1917.0,1916.8,4.8269]
[1688279654422,16.20872184,1917.0,1916.9,0.00329717]
[1688279655430,16.20872184,1917.0,1916.8,4.8269]
[1688279656394,16.20872184,1917.0,1916.9,0.00329717]
[1688279657531,16.20872184,1917.0,1916.8,4.8269]
[1688279658302,16.20872184,1917.0,1916.9,0.00329717]
[1688279659302,16.20872184,1917.0,1916.8,4.8269]
[1688279660420,16.20872184,1917.0,1916.9,0.00329717]
[1688279661324,16.20872184,1917.0,1916.8,4.8269]
[1688279662404,16.20872184,1917.0,1916.9,0.00329717]
[1688279663441,16.20872184,1917.0,1916.8,4.8269]
[1688279664297,16.20872184,1917.0,1916.9,0.00329717]
[1688279665318,16.20872184,1917.0,1916.8,4.8269]
[1688279666424,16.20872184,1917.0,1916.9,0.00329717]
[1688279667337,16.20872184,1917.0,1916.8,4.8269]
[1688279667750,2.68752184,1916.9,1916.7,2.6]
[1688279667908,10.91404,1916.8,1916.7,2.6]
[1688279668104,13.60156184,1916.8,1916.7,2.6]
[1688279668317,13.60156184,1916.8,1916.7,2.60317983]
[1688279668318,16.21007184,1916.8,1916.7,2.60317983]
[1688279668639,17.83107902,1916.8,1916.7,2.60317983]
[1688279669602,15.22256902,1916.8,1916.7,2.60317983]
[1688279673247,13.60156184,1916.8,1916.7,2.60317983]
[1688279676679,16.21007184,1916.8,1916.7,2.60317983]
[1688279689696,21.70107184,1916.8,1916.7,2.60317983]
[1688279689864,25.51907184,1916.8,1916.7,2.60317983]
[1688279690365,25.51907184,1916.8,1916.7,2.6]
[1688279690570,28.54197419,1916.8,1916.7,2.6]
[1688279691966,28.54197419,1916.8,1916.0,3.13067647]
[1688279691967,28.76046135,1916.8,1916.0,3.13067647]
[1688279692169,15.65394,1916.5,1916.1,1.9668]
[1688279692393,13.04595,1916.3,1916.1,1.9668]
[1688279692589,13.12484184,1916.2,1916.1,1.9668]
[1688279692788,16.21417184,1916.2,1916.1,1.9668]
[1688279693474,16.21417184,1916.2,1916.1,1.97074961]
[1688279704430,17.39196584,1916.2,1916.1,1.97074961]
[1688279705521,16.21417184,1916.2,1916.1,1.97074961]
[1688279709147,16.21417184,1916.2,1916.1,0.00394961]
[1688279720578,7.90618184,1916.2,1916.1,0.00394961]
[1688279720871,2.68752184,1916.2,1916.1,0.00394961]
[1688279721275,7.90618184,1916.2,1916.1,0.00394961]
[1688279722271,13.60484184,1916.2,1916.1,0.00394961]
[1688279723342,0.48,1916.2,1916.1,11.30017222]
[1688279723545,5.60874,1916.7,1916.2,5.71613647]
[1688279723780,2.68752184,1916.6,1916.2,10.93479647]
[1688279723943,7.90516184,1916.6,1916.4,0.49747647]
[1688279724363,13.12280184,1916.6,1916.4,0.49747647]
[1688279725280,5.21764,1916.6,1916.4,0.49747647]
[1688279725577,10.43528,1916.6,1916.4,1.31547647]
[1688279726545,10.43528,1916.6,1916.4,3.05616608]
[1688279726761,10.43528,1916.6,1916.4,8.27424608]
[1688279727074,0.48,1916.5,1916.4,8.27424608]
[1688279728067,0.48,1916.5,1916.4,3.05616608]
[1688279728384,5.69784,1916.5,1916.4,1.31547647]
[1688279729746,13.60320184,1916.5,1916.4,1.31547647]
[1688279730074,13.60320184,1916.5,1916.4,0.49747647]
[1688279730375,16.21212184,1916.5,1916.4,0.49747647]
[1688279730586,16.21212184,1916.5,1916.3,4.5614]
[1688279730587,16.22867644,1916.5,1916.3,4.5614]
[1688279730876,17.35400402,1916.4,1916.3,2.5293]
[1688279731174,17.83400402,1916.4,1916.3,2.5293]
[1688279731473,17.83400402,1916.4,1916.3,2.53245696]
[1688279732451,17.83400402,1916.4,1916.3,2.5293]
[1688279733371,17.83400402,1916.4,1916.3,0.00315696]
[1688279734334,17.83400402,1916.4,1916.0,3.22387647]
[1688279734540,13.04665,1916.2,1916.0,3.22387647]
[1688279734780,3.16752184,1916.1,1916.0,3.22387647]
[1688279735075,13.60538184,1916.1,1916.0,3.22387647]
[1688279735479,13.60538184,1916.1,1916.0,3.22706226]
[1688279739795,8.38645184,1916.1,1916.0,3.22706226]
[1688279739991,13.60538184,1916.1,1916.0,3.22706226]
[1688279740197,8.38645184,1916.1,1916.0,3.22706226]
[1688279740357,16.21484184,1916.1,1916.0,3.22706226]
[1688279742642,13.60538184,1916.1,1916.0,3.22706226]
[1688279745614,0.48,1916.1,1916.0,8.44626226]
[1688279745905,0.48,1916.1,1916.0,15.31182449]
[1688279746769,0.48,1916.1,1916.0,10.09262449]
[1688279747203,5.69893,1916.1,1916.0,10.09262449]
[1688279747403,5.69893,1916.1,1916.0,8.44626226]
[1688279749726,0.48,1916.1,1916.0,8.44626226]
[1688279749886,0.48,1916.1,1916.0,9.26426226]
[1688279750086,5.21829,1916.4,1916.0,14.48346226]
[1688279750286,0.48,1916.3,1916.1,0.818]
[1688279750515,5.69844,1916.3,1916.2,0.49747647]
[1688279751524,5.69844,1916.3,1916.2,0.50064304]
[1688279756589,10.91688,1916.3,1916.2,0.50064304]
[1688279758245,5.69844,1916.3,1916.2,0.50064304]
[1688279760136,5.69844,1916.3,1916.2,2.60316657]
[1688279760296,5.69844,1916.3,1916.2,3.10064304]
[1688279762445,10.91682,1916.3,1916.2,3.10064304]
[1688279762743,10.91682,1916.3,1916.2,2.60316657]
[1688279762744,5.69838,1916.3,1916.2,2.60316657]
[1688279762947,5.69838,1916.3,1916.2,3.10064304]
[1688279763515,10.91676,1916.3,1916.2,3.10064304]
[1688279764610,10.91676,1916.3,1916.2,2.60316657]
[1688279764812,10.91676,1916.3,1916.2,3.10064304]
[1688279765647,10.91676,1916.3,1916.2,2.60316657]
[1688279765850,10.91676,1916.3,1916.2,3.10064304]
[1688279766063,5.2183,1916.4,1916.2,8.31930304]
[1688279766346,0.0165546,1916.6,1916.2,8.31930304]
[1688279766347,0.0165546,1916.6,1916.2,14.5579115]
[1688279766551,5.21794,1916.5,1916.2,15.3759115]
[1688279766751,0.48,1916.4,1916.2,15.3759115]
[1688279767454,5.69815,1916.4,1916.2,15.3759115]
[1688279767634,5.69815,1916.4,1916.3,1.46940899]
[1688279767815,5.69815,1916.4,1916.2,15.3759115]
[1688279768627,10.9163,1916.4,1916.2,4.1205915]
[1688279768826,10.9163,1916.4,1916.2,3.10064304]
[1688279770854,10.9163,1916.4,1916.2,8.31930304]
[1688279772149,10.9163,1916.4,1916.2,3.10064304]
[1688279772455,10.9163,1916.4,1916.2,8.31929304]
[1688279774762,5.69815,1916.4,1916.2,13.53795304]
[1688279776440,10.91626,1916.4,1916.2,8.31929304]
[1688279778681,10.91626,1916.4,1916.2,10.99449304]
[1688279781040,5.69811,1916.4,1916.2,10.99449304]
[1688279781833,10.91622,1916.4,1916.2,10.99449304]
[1688279782264,5.69811,1916.4,1916.2,10.99449304]
[1688279783773,5.69811,1916.4,1916.2,16.21315304]
[1688279783974,5.69811,1916.4,1916.2,10.99449304]
[1688279785849,5.69811,1916.4,1916.2,16.21315304]
[1688279786070,5.69811,1916.4,1916.2,10.99449304]
[1688279792799,5.69811,1916.4,1916.2,16.21315304]
[1688279793291,5.69811,1916.4,1916.2,10.99449304]
[1688279795808,5.69811,1916.4,1916.2,16.21315304]
[1688279796183,5.69811,1916.4,1916.2,10.99449304]
[1688279796504,10.91622,1916.4,1916.2,10.99449304]
[1688279800012,10.86622,1916.4,1916.2,10.99449304]
[1688279801807,5.64811,1916.4,1916.2,10.99449304]
[1688279802316,5.64811,1916.4,1916.2,12.82614034]
[1688279808520,5.64811,1916.4,1916.2,10.99449304]
[1688279812017,10.86622,1916.4,1916.2,10.99449304]
[1688279813325,5.64811,1916.4,1916.2,10.99449304]
[1688279814330,10.86622,1916.4,1916.2,10.99449304]
[1688279817522,5.64811,1916.4,1916.2,10.99449304]
[1688279818425,10.86622,1916.4,1916.2,10.99449304]
[1688279820236,5.64811,1916.4,1916.2,10.99449304]
[1688279821039,0.43,1916.4,1916.2,10.99449304]
[1688279821186,0.43,1916.4,1916.2,12.82614034]
[1688279822251,5.64815,1916.4,1916.2,12.82614034]
[1688279822548,5.64814,1916.4,1916.2,12.82614034]
[1688279823951,0.43,1916.4,1916.2,18.04480034]
[1688279824093,0.43,1916.4,1916.2,12.82614034]
[1688279824726,5.64812,1916.4,1916.2,12.82614034]
[1688279824928,5.64812,1916.4,1916.2,18.04480034]
[1688279825120,5.64812,1916.4,1916.2,12.82614034]
[1688279826964,5.64812,1916.4,1916.2,18.04480034]
[1688279827151,5.64812,1916.4,1916.2,12.82614034]
[1688279828124,0.43,1916.4,1916.2,12.82614034]
[1688279828429,5.64815,1916.4,1916.2,12.82614034]
[1688279828655,5.64815,1916.4,1916.2,10.99449304]
[1688279831673,5.64815,1916.4,1916.2,16.21315304]
[1688279832033,5.64815,1916.4,1916.2,10.99449304]
[1688279836176,5.64815,1916.4,1916.2,16.21315304]
[1688279837065,0.43,1916.4,1916.2,16.21315304]
[1688279838365,0.43,1916.4,1916.2,18.30574334]
[1688279839904,5.64813,1916.4,1916.2,13.08708334]
[1688279840085,5.64813,1916.4,1916.2,10.99449304]
[1688279840794,5.64813,1916.4,1916.2,16.21315304]
[1688279841595,5.64813,1916.4,1916.2,10.99449304]
[1688279842094,10.86626,1916.4,1916.2,10.99449304]
[1688279851061,2.68752184,1916.3,1916.2,2.60316657]
[1688279851255,17.82975502,1916.3,1916.2,2.60316657]
[1688279885459,17.80164098,1916.3,1916.2,2.60316657]
[1688279890560,16.1853578,1916.3,1916.2,2.60316657]
[1688279914321,10.43676,1916.3,1916.2,2.60316657]
[1688279915684,13.52595,1916.3,1916.2,2.60316657]
[1688279919133,0.48,1916.3,1916.2,3.10064304]
[1688279919331,5.21838,1916.3,1916.2,3.91864304]
[1688279919534,10.43676,1916.3,1916.2,5.31089734]
[1688279919839,5.21838,1916.3,1916.2,5.31089734]
[1688279920334,10.43676,1916.3,1916.2,5.31089734]
[1688279920720,5.21838,1916.3,1916.2,5.31089734]
[1688279922553,10.43676,1916.3,1916.2,5.31089734]
[1688279922758,10.43676,1916.3,1916.2,4.49289734]
[1688279923828,16.21347184,1916.3,1916.2,2.60316657]
[1688279924451,16.21347184,1916.3,1916.2,2.6]
[1688279925473,16.21347184,1916.3,1916.2,2.60304126]
[1688279926532,16.21347184,1916.3,1916.2,2.6]
[1688279927232,18.09738248,1916.3,1916.2,2.6]
[1688279930527,18.09738248,1916.3,1916.2,2.60316416]
[1688279937475,18.09738248,1916.3,1916.2,2.6]
[1688279938147,18.90738248,1916.3,1916.2,2.6]
[1688279939168,18.09738248,1916.3,1916.2,2.6]
[1688279939489,18.09738248,1916.3,1916.2,2.60316416]
[1688279947583,18.09738248,1916.3,1916.2,2.6]
[1688279949498,18.09738248,1916.3,1916.2,2.60316416]
[1688279956210,23.58838248,1916.3,1916.2,2.60316416]
[1688279956512,23.58838248,1916.3,1916.2,2.6]
[1688279958400,26.58838248,1916.3,1916.2,2.6]
[1688279961518,21.09738248,1916.3,1916.2,2.60316416]
[1688279961716,19.21347184,1916.3,1916.2,2.60316416]
[1688279977555,19.21347184,1916.3,1916.2,2.6]
[1688279982458,19.21347184,1916.3,1916.2,2.60316416]
[1688279984565,19.21347184,1916.3,1916.2,2.6]
[1688279988592,19.21347184,1916.3,1916.2,2.60316416]
[1688279993493,19.21347184,1916.3,1916.2,2.6]
[1688279995510,19.21347184,1916.3,1916.2,2.60316416]
[1688279999415,21.96041965,1916.3,1916.2,2.60316416]
[1688280000471,21.96041965,1916.3,1916.2,2.6]
[1688280008617,19.21347184,1916.3,1916.2,2.6]
[1688280008866,16.21347184,1916.3,1916.2,2.6]
[1688280009161,15.73347184,1916.3,1916.2,2.6]
[1688280009658,15.73347184,1916.3,1916.2,2.60304126]
[1688280010358,16.21347184,1916.3,1916.2,2.60304126]
[1688280030574,18.09572802,1916.3,1916.2,2.60304126]
[1688280032508,18.09572802,1916.3,1916.2,2.6]
[1688280033506,18.09572802,1916.3,1916.2,2.60341448]
[1688280037846,16.21347184,1916.3,1916.2,2.60341448]
[1688280116565,16.21347184,1916.3,1916.2,2.6]
[1688280117447,16.21347184,1916.3,1916.2,2.60340973]
[1688280128421,24.922959,1916.3,1916.2,2.60340973]
[1688280128731,24.922959,1916.3,1916.2,2.6]
[1688280128987,28.19965636,1916.3,1916.2,2.6]
[1688280133122,29.01765636,1916.3,1916.2,2.6]
[1688280135758,29.01765636,1916.3,1915.5,0.49747647]
[1688280136041,15.65924,1915.8,1915.6,2.0712]
[1688280136217,16.21757184,1915.7,1915.6,2.0712]
[1688280166015,16.21757184,1915.7,1915.5,5.75237647]
[1688280195704,16.21757184,1915.7,1915.6,0.00332984]
[1688280204731,5.2187,1916.2,1915.8,0.49747647]
[1688280205018,5.21732,1916.7,1916.5,0.49747647]
[1688280205556,0.54542927,1916.7,1916.5,0.49747647]
[1688280205683,5.21721,1916.8,1916.6,0.00311033]
[1688280207629,0.48,1916.7,1916.6,0.00311033]
[1688280214404,0.48,1916.7,1916.6,5.22068033]
[1688280216517,0.48,1916.7,1916.6,12.60684001]
[1688280223347,10.43324,1917.0,1916.7,0.49747647]
[1688280223648,0.48,1916.9,1916.7,6.52762647]
[1688280223810,0.48,1916.9,1916.7,7.57693712]
[1688280224549,0.48,1916.9,1916.8,0.00309108]
[1688280224850,5.69678,1916.9,1916.8,0.00309108]
[1688280225632,8.38430184,1916.9,1916.8,0.00309108]
[1688280225841,13.60108184,1916.9,1916.8,0.00309108]
[1688280226969,8.38430184,1916.9,1916.8,0.00309108]
[1688280227269,8.38430184,1916.9,1916.8,5.79188183]
[1688280227822,8.38430184,1916.9,1916.8,0.57486183]
[1688280228122,8.38430184,1916.9,1916.8,0.00309108]
[1688280229181,3.16752184,1916.9,1916.8,5.22011108]
[1688280229333,3.16752184,1916.9,1916.8,0.00309108]
[1688280231370,8.38427184,1916.9,1916.8,0.00309108]
[1688280232391,13.60102184,1916.9,1916.8,0.00309108]
[1688280233245,16.20939184,1916.9,1916.8,0.00309108]
[1688280240805,17.83033102,1916.9,1916.8,0.00309108]
[1688280242375,16.20939184,1916.9,1916.8,0.00309108]
[1688280247066,13.60102184,1916.9,1916.8,0.00309108]
[1688280252683,13.60102184,1916.9,1916.8,0.00026855]
[1688280253687,13.60102184,1916.9,1916.8,0.00298252]
[1688280256835,8.38427184,1916.9,1916.8,0.00298252]
[1688280258135,3.16752184,1916.9,1916.8,0.00298252]
[1688280258642,8.38427184,1916.9,1916.8,0.00298252]
[1688280259636,7.90427184,1916.9,1916.8,0.00298252]
[1688280260437,13.12102184,1916.9,1916.8,0.00298252]
[1688280261137,13.60102184,1916.9,1916.8,0.00298252]
[1688280268723,16.20939184,1916.9,1916.8,0.00298252]
[1688280275270,13.60102184,1916.9,1916.8,0.00298252]
[1688280289103,16.20939184,1916.9,1916.8,0.00298252]
[1688280362703,17.83033102,1916.9,1916.8,0.00298252]
[1688280366658,23.04708102,1916.9,1916.8,0.00298252]
[1688280366885,26.04708102,1916.9,1916.8,0.00298252]
[1688280367288,26.86208102,1916.9,1916.8,0.00298252]
[1688280367594,26.86208102,1916.9,1916.7,2.6]
[1688280367756,18.89627994,1916.8,1916.7,2.6]
[1688280368696,18.89627994,1916.8,1916.7,2.60326374]
[1688280369599,18.89627994,1916.8,1916.7,2.6]
[1688280371007,22.71427994,1916.8,1916.7,2.6]
[1688280371157,22.71427994,1916.8,1916.1,5.29107647]
[1688280371158,2.27142799,1916.7,1916.1,5.29107647]
[1688280371359,2.68752184,1916.4,1916.1,0.49747647]
[1688280371619,2.68752184,1916.4,1916.2,0.00343125]
[1688280371910,16.13514,1916.3,1916.2,0.00343125]
[1688280372197,20.70492802,1916.3,1916.2,0.00343125]
[1688280372559,25.92330802,1916.3,1916.1,0.49747647]
[1688280372758,15.73417184,1916.2,1916.1,0.49747647]
[1688280372958,16.21417184,1916.2,1916.1,0.49747647]
[1688280373559,16.21417184,1916.2,1916.1,0.50093352]
[1688280375769,18.80657264,1916.2,1916.1,0.00345705]
[1688280375969,19.61657264,1916.2,1916.1,0.00345705]
[1688280376265,18.80657264,1916.2,1916.1,0.00345705]
[1688280376688,18.80657264,1916.2,1915.9,0.49747647]
[1688280376883,0.48,1916.1,1915.9,0.49747647]
[1688280377108,15.73552184,1916.0,1915.9,0.49747647]
[1688280377324,16.21552184,1916.0,1915.9,0.49747647]
[1688280377593,16.21552184,1916.0,1915.9,0.50095283]
[1688280393110,18.21835058,1916.0,1915.9,0.00347636]
[1688280393801,18.21835058,1916.0,1915.8,2.0292]
[1688280394091,13.52867,1915.9,1915.8,2.0292]
[1688280394302,16.21619184,1915.9,1915.8,2.0292]
[1688280403941,16.21619184,1915.9,1915.7,0.49747647]
[1688280404245,15.73689184,1915.8,1915.7,2.47387647]
[1688280404438,16.21689184,1915.8,1915.7,2.47387647]
[1688280404631,16.21689184,1915.8,1915.7,2.47723666]
[1688280410170,16.21689184,1915.8,1915.7,1.97976019]
[1688280434402,16.21689184,1915.8,1915.7,0.00336019]
[1688280434560,16.21689184,1915.8,1915.6,4.6776]
[1688280434906,0.48,1915.7,1915.6,4.6776]
[1688280435064,16.21757184,1915.7,1915.6,4.6776]
[1688280435770,16.21757184,1915.7,1915.6,4.68096984]
[1688280452990,3.41490025,1916.1,1915.7,0.49747647]
[1688280452991,5.21961,1915.9,1915.7,0.49747647]
[1688280453192,5.21979,1915.8,1915.7,1.31547647]
[1688280453527,10.43958,1915.8,1915.7,1.31547647]
[1688280453690,10.43958,1915.8,1915.7,2.03271266]
[1688280454327,10.91958,1915.8,1915.7,2.03271266]
[1688280457312,16.21697184,1915.8,1915.7,0.0033581]
[1688280457639,16.21697184,1915.8,1915.7,0.49747647]
[1688280458742,16.21697184,1915.8,1915.7,0.50069826]
[1688280483018,3.0,1916.2,1915.7,0.50069826]
[1688280483156,10.4395,1915.8,1915.7,0.50069826]
[1688280483773,13.04937,1915.8,1915.7,0.50069826]
[1688280484195,15.73689184,1915.8,1915.7,0.50069826]
[1688280484500,16.21689184,1915.8,1915.7,0.50069826]
[1688280484682,18.09956702,1915.8,1915.7,0.50069826]
[1688280491497,16.21689184,1915.8,1915.7,0.50069826]
[1688280499380,5.21969,1915.9,1915.7,0.50069826]
[1688280499680,13.12677184,1915.9,1915.7,0.50069826]
[1688280500089,15.73650184,1915.9,1915.7,0.50069826]
[1688280500305,15.73650184,1915.9,1915.7,1.41912309]
[1688280501225,10.9195,1915.8,1915.7,1.41912309]
[1688280502230,10.9195,1915.8,1915.7,0.50069826]
[1688280503385,0.48,1915.8,1915.7,1.31869826]
[1688280503601,3.0,1916.2,1916.1,0.49747647]
[1688280503602,2.60935,1916.2,1916.1,0.49747647]
[1688280503792,10.43732,1916.2,1916.1,0.49747647]
[1688280503987,13.04665,1916.2,1916.1,0.49747647]
[1688280504764,13.04665,1916.2,1916.1,0.50052823]
[1688280505223,13.52665,1916.2,1916.1,0.50052823]
[1688280508546,17.82776884,1916.2,1916.1,0.50052823]
[1688280508856,17.82776884,1916.2,1916.1,0.00305176]
[1688280509618,17.82776884,1916.2,1915.9,0.49747647]
[1688280509822,3.16752184,1916.1,1915.9,0.49747647]
[1688280510033,13.048,1916.0,1915.9,0.49747647]
[1688280510356,16.21552184,1916.0,1915.9,0.49747647]
[1688280510719,16.21552184,1916.0,1915.9,0.50054753]
[1688280517979,0.48,1916.0,1915.9,0.80375787]
[1688280518251,0.48,1916.0,1915.9,6.02322787]
[1688280518454,5.6992,1916.0,1915.9,0.80375787]
[1688280519641,10.9184,1916.0,1915.9,0.80375787]
[1688280520014,10.9184,1916.0,1915.9,0.50054753]
[1688280520311,16.21552184,1916.0,1915.9,0.50054753]
[1688280550178,16.21552184,1916.0,1915.9,0.00307106]
[1688280550815,16.21552184,1916.0,1915.9,0.49747647]
[1688280550969,0.4080071,1916.3,1915.9,0.49747647]
[1688280551185,2.68752184,1916.3,1916.2,0.49747647]
[1688280551922,2.68752184,1916.3,1916.2,0.50052228]
[1688280552684,3.16426158,1916.3,1916.2,0.50052228]
[1688280552911,8.38264158,1916.3,1916.2,0.50052228]
[1688280562232,8.38264158,1916.3,1916.2,1.15396351]
[1688280562841,8.38264158,1916.3,1916.2,0.50052228]
[1688280566243,0.48,1916.3,1916.2,0.50052228]
[1688280566445,5.69838,1916.3,1916.2,0.50052228]
[1688280567808,10.91676,1916.3,1916.2,0.50052228]
[1688280582576,13.60428184,1916.3,1916.2,0.50052228]
[1688280582749,16.21347184,1916.3,1916.2,0.50052228]
[1688280584252,13.60428184,1916.3,1916.2,0.50052228]
[1688280592062,17.83480902,1916.3,1916.2,0.50052228]
[1688280594868,17.83480902,1916.3,1916.2,0.49747647]
[1688280595904,17.83480902,1916.3,1916.2,0.50053839]
[1688280601370,16.21347184,1916.3,1916.2,0.50053839]
[1688280605308,16.21347184,1916.3,1916.2,0.00306192]
[1688280605466,22.24185184,1916.3,1916.2,0.00306192]
[1688280605667,22.24185184,1916.3,1915.7,0.49747647]
[1688280605867,22.24185184,1916.3,1915.9,0.49747647]
[1688280605868,4.32772184,1916.2,1915.9,0.49747647]
[1688280606165,16.56955218,1916.1,1915.9,0.49747647]
[1688280606368,2.68752184,1916.0,1915.9,0.49747647]
[1688280606599,16.21552184,1916.0,1915.9,0.49747647]
[1688280606805,16.21552184,1916.0,1915.9,0.50056735]
[1688280617896,16.21552184,1916.0,1915.9,0.00309088]
[1688280618101,18.91602402,1916.0,1915.9,0.00309088]
[1688280618937,20.48292402,1916.0,1915.6,0.49747647]
[1688280619144,15.65924,1915.8,1915.6,0.49747647]
[1688280619303,15.73757184,1915.7,1915.6,0.49747647]
[1688280619496,16.21757184,1915.7,1915.6,0.49747647]
[1688280619697,16.21757184,1915.7,1915.6,0.50107265]
[1688280622732,16.21757184,1915.7,1915.6,0.00359618]
[1688280623239,16.21757184,1915.7,1915.6,0.50107265]
[1688280657362,16.21757184,1915.7,1915.6,0.00359618]
[1688280657363,18.10031602,1915.7,1915.6,0.00359618]
[1688280657650,23.59131602,1915.7,1915.6,0.00359618]
[1688280657849,26.59131602,1915.7,1915.2,0.49747647]
[1688280658067,2.68752184,1915.5,1915.2,0.49747647]
[1688280658245,15.93127218,1915.4,1915.2,0.49747647]
[1688280658417,3.16752184,1915.3,1915.2,0.49747647]
[1688280658619,16.22029184,1915.3,1915.2,0.49747647]
[1688280658918,16.22029184,1915.3,1915.2,0.50081482]
[1688280664479,16.22029184,1915.3,1914.8,0.49747647]
[1688280664480,24.71129184,1915.3,1914.8,0.49747647]
[1688280664650,2.68752184,1915.0,1914.8,0.49747647]
[1688280664850,2.68752184,1915.0,1914.6,4.0636]
[1688280664851,15.66674,1914.9,1914.6,4.0636]
[1688280665040,15.66674,1914.9,1914.8,0.49747647]
[1688280665441,16.14674,1914.9,1914.8,0.49747647]
[1688280665641,17.761414,1914.9,1914.8,0.49747647]
[1688280666187,17.761414,1914.9,1914.6,0.49747647]
[1688280666338,0.48,1914.8,1914.5,0.1]
[1688280666544,15.66824,1914.7,1914.6,0.49747647]
[1688280666746,18.83576184,1914.7,1914.6,0.49747647]
[1688280666967,18.83576184,1914.7,1914.6,0.50103749]
[1688280677051,16.22439184,1914.7,1914.6,0.50103749]
[1688280677684,8.39027184,1914.7,1914.6,0.50103749]
[1688280677824,7.91027184,1914.7,1914.6,0.50103749]
[1688280678026,5.22263,1914.8,1914.6,1.08346924]
[1688280678220,5.22275,1914.7,1914.6,1.08346924]
[1688280678421,10.4455,1914.7,1914.6,1.08346924]
[1688280679360,10.9255,1914.7,1914.6,1.08346924]
[1688280679517,10.9255,1914.7,1914.6,0.50103749]
[1688280682550,0.41246176,1915.3,1914.6,1.31903749]
[1688280682865,10.4431,1915.2,1915.0,0.49747647]
[1688280683072,13.13003184,1915.3,1915.0,1.31547647]
[1688280683231,13.13003184,1915.3,1915.0,1.96923812]
[1688280683551,10.44197,1915.4,1915.0,1.96923812]
[1688280683759,13.12949184,1915.4,1915.0,1.96923812]
[1688280683951,7.90846184,1915.4,1915.1,0.0035039]
[1688280684154,13.12947184,1915.4,1915.3,0.49747647]
[1688280684366,15.73989184,1915.4,1915.3,0.49747647]
[1688280684872,15.73989184,1915.4,1915.3,0.50080377]
[1688280685267,16.21989184,1915.4,1915.3,0.50080377]
[1688280685981,13.60947184,1915.4,1915.3,0.50080377]
[1688280686333,0.48,1915.4,1915.3,1.31880377]
[1688280686581,5.22034,1915.6,1915.3,1.31880377]
[1688280686731,5.22066,1915.5,1915.3,1.31880377]
[1688280686931,7.90786184,1915.6,1915.3,1.31880377]
[1688280686932,13.12834184,1915.6,1915.3,1.31880377]